bitfinex-derivatives/quotes_ETHF0:USTF0_20251008
["timestamp","ask_amount","ask_price","bid_price","bid_amount"]
[1759916193462,1.2395,4479.7,4479.6,0.40165]
[1759916193668,1.86515,4479.7,4479.4,3.60947]
[1759916193868,1.86515,4479.7,4479.6,0.9121]
[1759916194169,1.4635,4479.7,4479.6,0.9121]
[1759916194369,0.3586,4480.2,4480.1,1.32671]
[1759916194571,0.75351466,4480.2,4480.1,1.68031]
[1759916195070,0.5826,4480.2,4480.1,1.68031]
[1759916195466,1.4635,4480.2,4480.1,1.2787]
[1759916195870,1.8651,4480.2,4480.0,0.40161]
[1759916196360,0.5394,4480.1,4480.0,0.96011]
[1759916196664,1.2395,4480.1,4480.0,1.31371]
[1759916198070,1.2395,4480.1,4480.0,1.68031]
[1759916198573,1.2395,4480.1,4480.0,1.90441]
[1759916199873,1.2395,4480.1,4480.0,1.68031]
[1759916202472,1.2395,4480.1,4480.0,1.88551]
[1759916203573,1.2395,4480.1,4480.0,1.31371]
[1759916206573,1.2395,4480.1,4480.0,1.66921]
[1759916207265,1.2395,4480.1,4480.0,1.88391]
[1759916207679,0.224,4480.2,4480.1,1.2287]
[1759916208079,0.00251391,4480.3,4480.2,1.0954]
[1759916208272,0.00251391,4480.3,4480.2,1.6303]
[1759916208481,0.22651391,4480.3,4480.2,1.6303]
[1759916208775,0.57891391,4480.3,4480.2,1.2287]
[1759916209079,1.46341391,4480.3,4480.2,1.2287]
[1759916209379,1.99450461,4480.3,4480.2,1.2287]
[1759916210375,0.75760461,4480.3,4480.2,1.2287]
[1759916211374,0.22651391,4480.3,4480.2,1.2287]
[1759916211574,0.00251391,4480.3,4480.2,1.2287]
[1759916211775,0.22651391,4480.3,4480.2,1.2287]
[1759916212482,0.22651391,4480.3,4480.2,42.0287]
[1759916212678,0.00251391,4480.3,4480.2,42.0287]
[1759916213182,0.3524,4481.4,4481.3,0.4015]
[1759916213370,0.3524,4481.4,4481.3,1.0953]
[1759916213371,1.10748844,4481.4,4481.3,1.0953]
[1759916213574,0.53108844,4481.4,4481.3,1.0953]
[1759916213774,0.224,4481.4,4481.3,1.6302]
[1759916214180,0.22656023,4481.4,4481.3,1.63308119]
[1759916214381,0.57896023,4481.4,4481.3,1.63308119]
[1759916215476,0.94126023,4481.4,4481.3,1.63308119]
[1759916215683,1.46346023,4481.4,4481.3,0.40438119]
[1759916215982,1.46346023,4481.4,4481.3,0.53778119]
[1759916216280,4.94712556,4481.4,4481.3,0.00288119]
[1759916216586,4.94712556,4481.4,4481.3,0.87758119]
[1759916219477,4.94712556,4481.4,4481.3,0.00288119]
[1759916220479,4.94712556,4481.4,4481.3,0.87758119]
[1759916220780,4.94712556,4481.4,4481.3,1.23158119]
[1759916220972,4.94712556,4481.4,4481.3,0.87758119]
[1759916221483,4.06262556,4481.4,4481.3,1.23158119]
[1759916221682,3.532261,4481.4,4481.3,1.23158119]
[1759916221883,4.06211016,4481.4,4481.3,1.23158119]
[1759916222373,4.94649264,4481.4,4481.3,1.23158119]
[1759916222578,4.72249264,4481.4,4481.3,1.23158119]
[1759916222774,4.416761,4481.4,4481.3,1.23158119]
[1759916224484,4.94611641,4481.4,4481.3,1.23158119]
[1759916226488,4.94611641,4481.4,4481.3,0.87758119]
[1759916226682,4.94611641,4481.4,4481.3,0.00288119]
[1759916226683,9.94611641,4481.4,4481.3,0.00288119]
[1759916226994,4.94611641,4481.4,4481.3,0.00288119]
[1759916234282,0.3524,4480.4,4480.3,0.74138]
[1759916234487,0.3524,4480.4,4480.3,1.27628]
[1759916234488,1.4609,4480.4,4480.3,1.27628]
[1759916234891,1.4609,4480.4,4480.3,1.63028]
[1759916235091,0.5764,4480.4,4480.3,1.63028]
[1759916235293,0.5764,4480.4,4480.3,1.63230763]
[1759916235490,0.9387,4480.4,4480.3,1.63230763]
[1759916235694,1.4609,4480.4,4480.3,1.63230763]
[1759916237391,1.4609,4480.4,4480.3,0.53692763]
[1759916238394,0.5764,4480.4,4480.3,1.23642763]
[1759916238993,0.3409,4480.7,4480.6,1.2013]
[1759916239193,3.21036023,4481.4,4481.2,1.2013]
[1759916239194,0.6844,4481.3,4481.2,1.2013]
[1759916239395,1.21442931,4481.3,4481.2,1.2013]
[1759916239591,3.41819707,4481.3,4481.2,1.2013]
[1759916239797,0.00256023,4481.4,4481.3,1.6028]
[1759916239996,0.22656023,4481.4,4481.3,1.6028]
[1759916240298,0.00256023,4481.4,4481.3,1.6028]
[1759916241395,0.00256023,4481.4,4481.3,6.6028]
[1759916241702,3.2078,4482.5,4482.4,1.2013]
[1759916242002,3.96194967,4482.5,4482.4,1.2013]
[1759916242394,3.2078,4483.0,4482.8,0.40137]
[1759916242591,0.55193114,4482.9,4482.8,1.60267]
[1759916242797,0.02462326,4482.9,4482.8,9.81047]
[1759916242991,3.2078,4484.1,4483.7,0.40128]
[1759916243196,3.5487,4484.1,4484.0,1.4085]
[1759916243396,4.30269095,4484.1,4484.0,1.4085]
[1759916243596,6.90440641,4484.1,4484.0,1.4085]
[1759916243996,7.24759427,4484.1,4484.0,1.41073652]
[1759916244397,8.13089427,4484.1,4484.0,1.20353652]
[1759916245504,7.59109427,4484.1,4484.0,1.81199652]
[1759916245707,7.59109427,4484.1,4484.0,1.41073652]
[1759916245892,8.13089427,4484.1,4484.0,1.41073652]
[1759916246707,8.13089427,4484.1,4484.0,0.86173652]
[1759916247308,7.60090332,4484.1,4484.0,0.86173652]
[1759916247508,7.60090332,4484.1,4484.0,1.20353652]
[1759916251616,7.60090332,4484.1,4484.0,1.41073652]
[1759916252010,6.83710332,4484.1,4484.0,1.41073652]
[1759916252317,6.71760332,4484.1,4484.0,1.41073652]
[1759916252914,7.60090332,4484.1,4484.0,1.41073652]
[1759916253109,6.15270332,4484.1,4484.0,1.41073652]
[1759916253318,6.49360332,4484.1,4484.0,1.41073652]
[1759916253516,0.40118,4484.9,4484.5,1.80972]
[1759916253710,0.6844,4485.0,4484.9,1.2013]
[1759916253914,0.9084,4485.0,4484.9,1.2013]
[1759916254114,3.81176458,4485.0,4484.9,1.2013]
[1759916254315,4.35156458,4485.0,4484.9,1.2013]
[1759916254522,4.35412489,4485.0,4484.9,1.2013]
[1759916255918,0.3435,4484.7,4484.6,0.8595]
[1759916256119,1.8494,4484.7,4484.6,0.8595]
[1759916256319,5.0572,4484.7,4484.6,0.8595]
[1759916256520,1.08562,4484.4,4484.3,0.8595]
[1759916256711,1.84942,4484.4,4484.3,0.8595]
[1759916257116,1.84942,4484.4,4484.3,1.2013]
[1759916257621,1.62544,4484.2,4484.1,1.26075]
[1759916257818,1.84944,4484.2,4484.1,1.26075]
[1759916258122,1.84944,4484.2,4484.1,0.8595]
[1759916259821,1.84944,4484.2,4484.0,0.00223652]
[1759916260025,1.84944,4484.2,4484.0,0.86173652]
[1759916260026,1.2242,4484.1,4484.0,0.86173652]
[1759916260415,1.2242,4484.1,4484.0,1.20353652]
[1759916261125,1.2242,4484.1,4484.0,0.00223652]
[1759916261126,7.39171867,4484.1,4484.0,0.00223652]
[1759916261629,0.6985,4482.9,4482.8,3.7276]
[1759916261821,0.6985,4482.9,4482.8,4.0777]
[1759916261822,1.4134,4482.9,4482.8,4.0777]
[1759916262519,1.4134,4482.9,4482.8,4.08037414]
[1759916262716,1.4134,4482.9,4482.8,0.00267414]
[1759916264819,1.4134,4482.9,4482.8,0.87257414]
[1759916266622,1.4134,4482.9,4482.8,1.20037414]
[1759916267023,1.4134,4482.9,4482.8,0.00267414]
[1759916267721,1.4134,4482.9,4482.8,0.84237414]
[1759916268228,4.30586323,4482.9,4482.8,0.00267414]
[1759916270424,1.56021,4482.3,4482.2,0.8397]
[1759916270629,1.78421,4482.3,4482.2,0.8397]
[1759916270928,4.73140018,4482.3,4482.2,0.8397]
[1759916271133,0.3398,4481.8,4481.7,1.59586]
[1759916271326,0.22557988,4481.8,4481.7,1.59783434]
[1759916271723,0.22557988,4481.8,4481.7,1.19637434]
[1759916272629,0.00157988,4481.8,4481.7,1.19637434]
[1759916273134,0.00157988,4481.8,4481.7,9.40417434]
[1759916279532,0.72938,4482.7,4482.6,1.1944]
[1759916279733,0.81738,4482.7,4482.6,1.1944]
[1759916279934,3.78283234,4482.7,4482.6,1.1944]
[1759916280238,4.61363234,4482.7,4482.6,0.8397]
[1759916280436,4.61625029,4482.7,4482.6,1.1944]
[1759916282325,4.21487029,4482.7,4482.6,1.1944]
[1759916282525,4.12687029,4482.7,4482.6,1.1944]
[1759916282837,4.35087029,4482.7,4482.6,1.1944]
[1759916283837,4.12687029,4482.7,4482.6,1.1944]
[1759916284135,4.35087029,4482.7,4482.6,1.1944]
[1759916284937,3.52007029,4482.7,4482.6,1.1944]
[1759916285130,4.35087029,4482.7,4482.6,1.1944]
[1759916287333,0.22661795,4482.7,4482.6,1.1944]
[1759916287532,0.00261795,4482.7,4482.6,1.1944]
[1759916288040,0.00261795,4482.7,4482.6,6.1944]
[1759916288940,0.00261795,4482.7,4482.6,46.9944]
[1759916289134,3.93711,4483.5,4483.4,1.1944]
[1759916289335,4.16111,4483.5,4483.4,1.1944]
[1759916289541,3.7598,4483.5,4483.4,1.1944]
[1759916289840,3.2078,4483.5,4483.4,1.1944]
[1759916290139,3.21049961,4483.5,4483.4,1.1944]
[1759916291829,4.36929961,4483.5,4483.0,0.1957]
[1759916292038,0.6678,4483.3,4483.2,0.8397]
[1759916292239,0.8918,4483.3,4483.2,1.1944]
[1759916292439,3.21049961,4483.5,4483.4,1.1944]
[1759916292639,3.43449961,4483.5,4483.4,1.1944]
[1759916293242,3.21049961,4483.5,4483.4,1.1944]
[1759916293434,3.43449961,4483.5,4483.4,1.1944]
[1759916294335,3.76249961,4483.5,4483.4,1.1944]
[1759916295440,0.22669961,4483.5,4483.4,1.1944]
[1759916296446,0.00269961,4483.5,4483.4,1.1944]
[1759916303852,0.00269961,4483.5,4483.4,6.5654]
[1759916306746,0.84999961,4483.5,4483.4,1.1944]
[1759916306951,1.19659961,4483.5,4483.4,1.1944]
[1759916307651,0.68439961,4483.5,4483.4,1.1944]
[1759916308950,0.00269961,4483.5,4483.4,1.1944]
[1759916309149,3.94409,4484.8,4484.7,1.1936]
[1759916309453,7.9873675,4484.8,4484.7,1.1936]
[1759916310152,7.98954215,4484.8,4484.7,1.1936]
[1759916310354,7.98954215,4484.8,4484.7,0.8644]
[1759916313951,7.98954215,4484.8,4484.7,1.2656]
[1759916314153,7.98954215,4484.8,4484.7,0.8644]
[1759916315252,4.78174215,4484.8,4484.7,0.8644]
[1759916317356,5.31138107,4484.8,4484.7,0.8644]
[1759916319250,4.39799107,4484.8,4484.7,1.1936]
[1759916319449,4.91019107,4484.8,4484.7,1.1936]
[1759916319949,0.7363,4484.7,4484.6,1.2656]
[1759916320156,2.12473892,4484.7,4484.6,1.2656]
[1759916320554,5.02467233,4484.7,4484.6,0.5184]
[1759916320753,1.1939,4484.5,4484.0,0.2009]
[1759916320949,0.8473,4484.1,4484.0,0.40126]
[1759916321255,0.5591,4484.1,4484.0,1.79576]
[1759916321451,1.4179,4484.1,4484.0,1.79576]
[1759916322256,1.4179,4484.1,4484.0,1.59486]
[1759916322653,0.7362,4484.1,4484.0,1.59486]
[1759916322859,0.224,4484.1,4484.0,1.78906]
[1759916325744,0.3136,4484.5,4484.4,1.57892]
[1759916325956,0.5376,4484.5,4484.4,1.57892]
[1759916328753,0.32817465,4484.8,4484.7,0.4012]
[1759916329058,4.27083845,4484.8,4484.7,1.5618]
[1759916329259,4.74723845,4484.8,4484.7,1.5618]
[1759916329461,3.93273845,4484.8,4484.7,1.5618]
[1759916329853,3.70873845,4484.8,4484.7,1.5618]
[1759916330052,3.93273845,4484.8,4484.7,1.5618]
[1759916332659,4.40913845,4484.8,4484.7,1.5618]
[1759916332855,0.75621603,4484.8,4484.7,1.5618]
[1759916333051,0.00217465,4484.8,4484.7,1.5618]
[1759916336550,0.32817465,4484.8,4484.7,1.5618]
[1759916336861,1.67255897,4484.8,4484.7,0.4012]
[1759916337156,1.67255897,4484.8,4484.7,1.5618]
[1759916337360,1.67263859,4484.8,4484.7,1.5618]
[1759916337558,1.19623859,4484.8,4484.7,1.5618]
[1759916337760,1.67263859,4484.8,4484.7,1.5618]
[1759916337961,1.14267465,4484.8,4484.7,1.5618]
[1759916338156,1.67273651,4484.8,4484.7,1.5618]
[1759916339263,1.19633651,4484.8,4484.7,1.5618]
[1759916339653,0.85823651,4484.8,4484.7,1.5618]
[1759916340063,1.67273651,4484.8,4484.7,1.5618]
[1759916340363,1.08223651,4484.8,4484.7,1.5618]
[1759916340956,1.89673651,4484.8,4484.7,0.514]
[1759916341358,1.89673651,4484.8,4484.7,0.84]
[1759916341864,1.89673651,4484.8,4484.7,1.1606]
[1759916342572,0.75623651,4484.8,4484.7,1.1606]
[1759916343062,1.08223651,4484.8,4484.7,1.1606]
[1759916343665,1.89673651,4484.8,4484.7,1.1606]
[1759916344263,1.67273651,4484.8,4484.7,1.1606]
[1759916344464,0.89027465,4484.8,4484.7,1.1606]
[1759916344670,1.36667465,4484.8,4484.7,1.1606]
[1759916345064,0.4764,4484.7,4484.6,0.514]
[1759916345265,0.6641,4484.7,4484.6,1.1606]
[1759916345669,0.00217465,4484.8,4484.7,1.5618]
[1759916345870,0.22617465,4484.8,4484.7,1.5618]
[1759916346869,0.00217465,4484.8,4484.7,1.5618]
[1759916347168,3.2078,4485.5,4485.4,1.56174]
[1759916347370,3.73723841,4485.5,4485.4,1.56174]
[1759916347569,3.96123841,4485.5,4485.4,1.56174]
[1759916348272,0.00213486,4485.5,4485.4,4.77133755]
[1759916349574,34.977,4487.0,4486.5,1.1606]
[1759916349575,4.3483,4486.6,4486.5,1.1606]
[1759916349873,7.75883799,4486.6,4486.5,0.84]
[1759916350365,7.75883799,4486.6,4486.5,1.3538]
[1759916350366,3.96324127,4486.6,4486.5,1.3538]
[1759916350870,4.28924127,4486.6,4486.5,1.3538]
[1759916351665,5.10374127,4486.6,4486.5,1.3538]
[1759916351861,4.62734127,4486.6,4486.5,1.3538]
[1759916353066,5.10374127,4486.6,4486.5,1.3538]
[1759916353674,5.10374127,4486.6,4486.5,1.1606]
[1759916354473,8.00090459,4486.6,4486.5,0.84]
[1759916354669,1.1405,4486.3,4486.2,1.24106]
[1759916354868,1.3645,4486.3,4486.2,0.514]
[1759916355064,1.3645,4486.3,4486.2,0.84]
[1759916355575,1.3645,4486.3,4486.2,1.1606]
[1759916357772,1.3645,4486.3,4486.2,0.84]
[1759916358667,4.22597398,4486.3,4486.0,0.40108]
[1759916358872,9.22597398,4486.3,4486.0,0.40108]
[1759916359073,1.1593,4485.8,4485.7,4.0069]
[1759916359278,1.1593,4485.8,4485.7,1.20021]
[1759916360276,1.1593,4485.8,4485.7,1.53161]
[1759916360777,0.224,4485.9,4485.8,1.1305]
[1759916360970,0.5539,4485.9,4485.8,1.1305]
[1759916361167,0.3299,4486.4,4486.3,1.53155]
[1759916361475,0.3299,4486.4,4486.0,0.2029]
[1759916361476,0.40102,4486.8,4486.5,1.3334]
[1759916361680,1.08331875,4486.6,4486.5,1.3334]
[1759916363079,0.75341875,4486.6,4486.5,1.3334]
[1759916363673,1.08331875,4486.6,4486.5,1.3334]
[1759916363874,0.55530706,4486.6,4486.5,1.3334]
[1759916364379,0.22540706,4486.6,4486.5,1.3334]
[1759916365075,0.22540706,4486.6,4485.9,0.4777]
[1759916365076,1.1593,4486.1,4485.9,0.4777]
[1759916365273,0.6689,4486.1,4486.0,1.73448]
[1759916365474,1.1593,4486.1,4486.0,1.73448]
[1759916365674,0.6689,4486.1,4486.0,42.53448]
[1759916365882,0.6689,4485.8,4485.7,0.7225]
[1759916366073,1.1593,4485.8,4485.7,1.5316]
[1759916366673,1.1593,4485.8,4485.7,1.1305]
[1759916368382,0.6689,4485.8,4485.7,1.1305]
[1759916368590,1.1593,4485.8,4485.7,1.1305]
[1759916369180,0.3299,4486.1,4486.0,1.73448]
[1759916369484,4.2599901,4486.1,4486.0,1.1305]
[1759916370886,4.2599901,4486.1,4486.0,1.3334]
[1759916370887,3.1006901,4486.1,4486.0,1.3334]
[1759916371184,3.7695901,4486.1,4486.0,1.3334]
[1759916371380,0.4904,4486.4,4486.0,0.6806]
[1759916371587,0.5529,4486.4,4486.3,1.1305]
[1759916371980,4.22307837,4486.4,4486.3,1.1305]
[1759916372182,4.75140578,4486.4,4486.3,1.1305]
[1759916372383,4.22307837,4486.4,4486.3,1.1305]
[1759916372784,4.22307837,4486.4,4486.3,0.4777]
[1759916373183,3.73267837,4486.4,4486.3,1.1305]
[1759916374195,4.22307837,4486.4,4486.3,1.1305]
[1759916374482,4.75168019,4486.4,4486.3,1.1305]
[1759916375386,1.42050182,4486.4,4486.3,1.1305]
[1759916376089,1.91090182,4486.4,4486.3,1.1305]
[1759916376595,1.42050182,4486.4,4486.3,1.1305]
[1759916377690,1.91090182,4486.4,4486.3,1.1305]
[1759916380183,1.08150182,4486.4,4486.3,1.1305]
[1759916381187,0.75160182,4486.4,4486.3,1.1305]
[1759916383985,0.75160182,4486.4,4486.3,41.9305]
[1759916384186,0.52860182,4486.4,4486.3,41.9305]
[1759916384387,0.00240706,4486.6,4486.5,0.4955]
[1759916384688,0.00240706,4486.6,4486.5,1.2678]
[1759916384886,3.2078,4487.3,4486.7,1.0808]
[1759916385090,3.4308,4487.3,4487.2,1.0808]
[1759916385287,6.8537943,4487.3,4487.2,1.48177]
[1759916385490,4.27802611,4487.3,4487.2,1.0808]
[1759916385889,4.28092056,4487.3,4487.2,1.0808]
[1759916388092,5.06532056,4487.3,4487.2,0.7618]
[1759916389592,4.60692056,4487.3,4487.2,1.0777]
[1759916390094,5.06532056,4487.3,4487.2,1.0777]
[1759916390497,5.06532056,4487.3,4487.2,0.7618]
[1759916390693,5.06532056,4487.3,4487.0,0.187]
[1759916390897,5.06532056,4487.3,4486.9,1.4956]
[1759916390898,1.1119,4487.0,4486.9,1.4956]
[1759916392798,1.1119,4487.0,4486.9,0.7787]
[1759916392991,1.51291,4486.8,4486.6,0.85973]
[1759916393199,1.3349,4486.7,4486.6,0.85973]
[1759916393390,1.3349,4486.7,4486.6,1.17973]
[1759916393595,1.1119,4486.4,4486.3,1.17975]
[1759916393794,1.3349,4486.4,4486.3,1.17975]
[1759916395007,1.3349,4486.4,4486.3,1.49565]
[1759916396100,1.3349,4486.4,4486.3,1.0946]
[1759916398502,1.3349,4486.4,4486.3,0.7787]
[1759916399805,1.3349,4486.4,4486.3,1.0946]
[1759916400203,0.544,4486.4,4486.3,1.0946]
[1759916400407,0.4584,4487.0,4486.7,1.0946]
[1759916400602,4.32259445,4487.3,4487.2,0.7787]
[1759916400799,5.07365971,4487.3,4487.2,1.0946]
[1759916401002,7.8997314,4487.3,4487.2,1.0946]
[1759916401207,0.73351,4486.8,4486.7,0.4587]
[1759916401412,1.51291,4486.8,4486.7,0.4587]
[1759916401706,1.1119,4486.8,4486.7,0.7787]
[1759916402207,1.1119,4486.8,4486.7,1.0946]
[1759916402505,1.1119,4486.8,4486.6,40.8]
[1759916402506,0.40102,4486.7,4486.6,40.8]
[1759916402806,0.85942,4486.7,4486.6,41.2587]
[1759916403010,1.51292,4486.7,4486.6,0.7787]
[1759916403715,1.1119,4486.4,4486.3,1.03695]
[1759916404207,1.1119,4486.4,4486.3,1.0946]
[1759916408112,1.1119,4486.4,4485.6,2.83024828]
[1759916408113,0.3325,4485.9,4485.7,0.4011]
[1759916408309,1.3349,4485.8,4485.7,0.4587]
[1759916408811,1.3349,4485.8,4485.7,0.7787]
[1759916411512,1.3349,4485.8,4485.7,1.0946]
[1759916412620,0.8765,4485.8,4485.7,1.0946]
[1759916412822,1.3349,4485.8,4485.7,1.0946]
[1759916413922,0.544,4485.8,4485.7,1.0946]
[1759916414117,0.223,4485.8,4485.7,1.0946]
[1759916415217,3.2078,4486.6,4486.5,1.69404]
[1759916415522,3.4308,4486.6,4486.5,1.69404]
[1759916416824,3.7518,4486.6,4486.5,1.69404]
[1759916417025,4.5426,4486.6,4486.5,1.293]
[1759916418024,1.3348,4486.6,4486.5,1.293]
[1759916418327,0.8567,4486.6,4486.5,1.293]
[1759916418624,1.3237,4486.6,4486.5,1.293]
[1759916418823,1.3237,4486.6,4486.5,1.0946]
[1759916421130,1.3237,4486.6,4486.5,1.2846]
[1759916421522,0.223,4486.6,4486.5,1.2846]
[1759916421926,0.8456,4486.6,4486.5,1.2846]
[1759916422231,1.3237,4486.6,4486.5,1.2846]
[1759916422526,0.8456,4486.6,4486.5,1.2846]
[1759916422731,0.223,4486.6,4486.5,1.2846]
[1759916424622,0.75120013,4486.6,4486.5,1.2846]
[1759916427129,1.85190013,4486.6,4486.5,1.2846]
[1759916427327,1.85190013,4486.6,4486.5,1.0946]
[1759916428327,1.85190013,4486.6,4486.5,1.2846]
[1759916428540,1.06110013,4486.6,4486.5,1.2846]
[1759916428832,0.75120013,4486.6,4486.5,1.2846]
[1759916430334,0.223,4486.6,4486.5,1.2846]
[1759916430833,0.5329,4486.6,4486.5,1.2846]
[1759916431036,1.85119053,4486.6,4486.5,1.2846]
[1759916432034,1.85119053,4486.6,4486.5,0.4587]
[1759916432333,1.1007,4486.4,4486.3,1.16585]
[1759916432539,1.62819053,4486.4,4486.3,1.48645]
[1759916434538,1.1007,4486.4,4486.3,1.48645]
[1759916436539,1.1007,4486.2,4486.1,0.7648]
[1759916436729,1.3237,4486.2,4486.1,0.7648]
[1759916437337,1.72477,4486.2,4486.1,0.7648]
[1759916439444,1.3237,4486.2,4486.1,0.7648]
[1759916443644,1.3237,4486.2,4486.1,1.0854]
[1759916444546,0.223,4486.2,4486.1,1.0854]
[1759916447048,0.5284,4486.2,4486.1,1.0854]
[1759916448150,1.2735,4486.2,4486.1,1.0854]
[1759916449346,1.2735,4486.2,4486.1,0.4491]
[1759916449651,0.6067,4486.0,4485.9,4.09119]
[1759916449845,1.0505,4486.0,4485.9,4.41129]
[1759916450351,1.0505,4486.0,4485.9,0.88339]
[1759916450850,1.0505,4486.0,4485.9,1.20349]
[1759916451649,1.0505,4486.0,4485.9,1.51309]
[1759916453055,0.223,4486.2,4486.1,2.98027]
[1759916453251,0.223,4486.2,4486.1,3.46257]
[1759916453452,3.08999607,4486.2,4486.1,3.46257]
[1759916454556,3.61797453,4486.2,4486.1,3.46257]
[1759916456056,3.61797453,4486.2,4486.1,2.4318]
[1759916456557,3.61797453,4486.2,4486.1,3.0615]
[1759916458762,3.39497453,4486.2,4486.1,3.0615]
[1759916459063,0.75097846,4486.2,4486.1,3.0615]
[1759916459267,3.2078,4486.4,4486.3,1.112]
[1759916460857,3.2078,4486.4,4486.3,41.912]
[1759916462263,3.2078,4486.4,4486.3,42.135]
[1759916462663,3.2078,4486.4,4486.3,1.112]
[1759916462964,3.4308,4486.4,4486.3,1.112]
[1759916463771,3.83185,4486.4,4486.3,1.112]
[1759916465266,3.4308,4486.4,4486.3,1.112]
[1759916466961,3.4308,4486.4,4486.3,0.4823]
[1759916467163,6.28442262,4486.4,4486.3,0.4823]
[1759916467365,0.40105,4486.3,4486.2,0.4823]
[1759916467670,3.26679581,4486.3,4486.2,0.4823]
[1759916467968,8.26679581,4486.3,4486.2,0.4823]
[1759916469273,3.26679581,4486.3,4486.2,0.8024]
[1759916471277,3.79485172,4486.3,4486.2,0.8024]
[1759916474476,3.79485172,4486.3,4486.2,0.4823]
[1759916474777,3.79485172,4486.3,4486.2,0.8024]
[1759916475382,3.79485172,4486.3,4486.2,1.112]
[1759916475383,4.01785172,4486.3,4486.2,1.112]
[1759916475878,4.01785172,4486.3,4486.2,0.8024]
[1759916479786,4.01785172,4486.3,4486.2,0.4823]
[1759916482288,4.01785172,4486.3,4486.2,1.0908]
[1759916483879,4.01785172,4486.3,4486.2,0.7923]
[1759916484085,4.01785172,4486.3,4486.2,0.4823]
[1759916490087,4.01785172,4486.3,4486.2,0.7923]
[1759916492098,4.01785172,4486.3,4486.2,1.0908]
[1759916496093,3.79485172,4486.3,4486.2,1.0908]
[1759916496300,4.01785172,4486.3,4486.2,1.0908]
[1759916497990,3.79485172,4486.3,4486.2,1.0908]
[1759916498196,4.01785172,4486.3,4486.2,1.0908]
[1759916502507,7.22565172,4486.3,4486.2,1.0908]
[1759916504311,7.22565172,4486.3,4486.2,0.7923]
[1759916505209,7.22565172,4486.3,4486.2,0.4823]
[1759916506406,7.22565172,4486.3,4486.2,0.7825]
[1759916506809,7.22565172,4486.3,4486.2,0.4823]
[1759916507006,7.22565172,4486.3,4485.5,5.558]
[1759916507007,0.4471,4485.5,4485.4,0.00179755]
[1759916507207,4.40595591,4485.5,4485.4,0.00179755]
[1759916508406,4.40595591,4485.5,4485.4,0.29909755]
[1759916508609,4.29945591,4485.5,4485.4,0.29909755]
[1759916508909,4.29945591,4485.5,4485.4,0.77229755]
[1759916509410,4.29945591,4485.5,4485.4,1.06799755]
[1759916514515,3.2078,4485.5,4485.4,1.06799755]
[1759916514808,3.60479346,4487.2,4486.2,0.593]
[1759916514809,3.2078,4486.3,4486.2,0.593]
[1759916515019,3.95735662,4486.3,4486.2,0.593]
[1759916515314,3.4308,4486.3,4486.2,1.0662]
[1759916518916,0.223,4486.3,4486.2,6.0662]
[1759916519513,3.3781,4486.8,4486.7,1.0662]
[1759916519709,3.6011,4486.8,4486.7,1.0662]
[1759916519914,3.7714,4486.8,4486.7,1.0662]
[1759916520112,0.4471,4486.6,4486.5,0.4732]
[1759916520318,0.3406,4486.1,4486.0,0.7819]
[1759916520519,0.96467,4486.1,4486.0,0.7819]
[1759916520714,0.57142,4485.7,4485.6,0.4732]
[1759916520908,0.84823,4485.5,4485.2,0.4732]
[1759916521113,1.07123,4485.5,4485.2,0.4732]
[1759916521314,3.94923009,4485.5,4485.2,0.4732]
[1759916521514,3.94923009,4485.5,4485.4,0.47499755]
[1759916522819,3.94923009,4485.5,4485.4,0.00179755]
[1759916523419,4.47865856,4485.5,4485.4,0.00179755]
[1759916523719,0.84828,4484.9,4484.8,0.4732]
[1759916523910,1.07128,4484.9,4484.8,0.4732]
[1759916524118,0.3406,4484.2,4484.0,0.1889]
[1759916524421,0.3406,4484.2,4484.1,0.7705]
[1759916524618,0.5636,4484.2,4484.1,0.77257632]
[1759916525423,3.43221046,4484.2,4484.1,0.77257632]
[1759916525625,3.43221046,4484.2,4484.1,1.06827632]
[1759916525821,3.43221046,4484.2,4484.1,0.47527632]
[1759916526126,3.53871046,4484.2,4484.1,0.47527632]
[1759916526511,3.43221046,4484.2,4484.1,0.77257632]
[1759916526924,3.53871046,4484.2,4484.1,0.77257632]
[1759916527126,3.53871046,4484.2,4484.1,0.47527632]
[1759916527620,3.43221046,4484.2,4484.1,0.47527632]
[1759916527824,3.43221046,4484.2,4484.1,0.77257632]
[1759916528015,3.20921046,4484.2,4484.1,1.06827632]
[1759916528220,3.26191046,4484.2,4484.1,1.06827632]
[1759916529121,3.43221046,4484.2,4484.1,1.06827632]
[1759916529725,3.43221046,4484.2,4484.1,0.47527632]
[1759916529726,3.53871046,4484.2,4484.1,0.47527632]
[1759916530517,3.43221046,4484.2,4484.1,0.77257632]
[1759916530919,3.43221046,4484.2,4484.1,1.06827632]
[1759916531223,3.26191046,4484.2,4484.1,1.06827632]
[1759916531824,3.43221046,4484.2,4484.1,1.06827632]
[1759916532325,3.53871046,4484.2,4484.1,0.47527632]
[1759916532530,3.53871046,4484.2,4484.1,0.00207632]
[1759916534126,0.74194,4483.2,4483.1,0.7705]
[1759916534321,0.96494,4483.2,4483.1,0.7705]
[1759916534521,0.96494,4483.2,4483.1,1.0662]
[1759916534722,0.5636,4483.2,4483.1,1.0662]
[1759916534930,0.3933,4483.2,4483.1,1.0662]
[1759916535223,0.56627935,4483.2,4483.1,1.06908343]
[1759916535423,0.56627935,4483.2,4483.1,0.77338343]
[1759916535824,3.5010568,4483.2,4483.1,0.77338343]
[1759916536532,3.6117568,4483.2,4483.1,0.47608343]
[1759916537526,3.5010568,4483.2,4483.1,0.47608343]
[1759916537726,3.5010568,4483.2,4483.1,1.05928343]
[1759916538324,3.6117568,4483.2,4483.1,0.47608343]
[1759916540130,3.5010568,4483.2,4483.1,0.77078343]
[1759916540526,3.2780568,4483.2,4483.1,0.77078343]
[1759916540725,3.5010568,4483.2,4483.1,0.77078343]
[1759916543230,3.2780568,4483.2,4483.1,1.05928343]
[1759916543435,0.22567935,4483.2,4483.1,1.05928343]
[1759916544429,0.00267935,4483.2,4483.1,1.05928343]
[1759916544735,0.40287935,4483.2,4483.1,1.05928343]